[Event "FIDE CB Open 2022"]
[Site "Ceske Budejovice"]
[Date "2022.07.05"]
[Round "5.43"]
[White "Shirinyan, Daniel"]
[Black "Krejci, Vera Marie"]
[Result "1/2-1/2"]
[ECO "D02"]
[WhiteElo "1876"]
[BlackElo "1554"]
[Annotator "NA RC COMBH"]
[PlyCount "78"]
[EventDate "2022.07.01"]
[EventType "swiss"]
[EventCountry "CZE"]
[SourceTitle "playchess.com"]
[Source "ChessBase"]
[SourceQuality "1"]
[TimeControl "40/5400+30:1800+30"]

1. Nf3 {[%emt 0:00:03]} d5 {[%emt 0:00:07]} 2. g3 {[%emt 0:00:03]} Nd7 {[%emt 0:00:09]} 3. d4 {[%emt 0:00:24]} Nb6 {[%emt 0:00:19]} 4. Bg2 {[%emt 0:00:20]} g6 {[%emt 0:01:05]} 5. Nbd2 {[%emt 0:02:41]} Nf6 {[%emt 0:02:02]} 6. b3 {[%emt 0:01:59]} c6 {[%emt 0:02:18]} 7. Bb2 {[%emt 0:00:55]} Bg7 {[%emt 0:00:38]} 8. O-O {[%emt 0:00:28]} O-O {[%emt 0:00:27]} 9. Re1 {[%emt 0:06:58]} Bg4 {[%emt 0:15:01]} 10. Ne5 {[%emt 0:00:54]} Qc8 {[%emt 0:09:39]} 11. Rc1 {[%emt 0:15:48]} Bh3 {[%emt 0:06:50]} 12. Bh1 {[%emt 0:08:35]} Nbd7 {[%emt 0:06:47]} 13. c4 {[%emt 0:03:27]} e6 {[%emt 0:02:52]} 14. Nd3 {[%emt 0:16:18]} Qd8 {[%emt 0:06:29]} 15. Bf3 {[%emt 0:11:41]} Bg4 {[%emt 0:06:57]} 16. Bg2 {[%emt 0:00:52]} Bf5 {[%emt 0:00:59]} 17. e4 {[%emt 0:01:11]} dxe4 {[%emt 0:00:30]} 18. Nxe4 {[%emt 0:00:16]} Bxe4 {[%emt 0:00:42]} 19. Bxe4 {[%emt 0:00:05]} Nxe4 {[%emt 0:00:57]} 20. Rxe4 {[%emt 0:00:02]} Nf6 {[%emt 0:01:29]} 21. Re1 {[%emt 0:00:33]} Re8 {[%emt 0:02:30]} 22. Qf3 {[%emt 0:01:03]} Nd7 {[%emt 0:05:08]} 23. Rcd1 {[%emt 0:00:51]} Qa5 {[%emt 0:03:19]} 24. Re2 {[%emt 0:01:59]} Qc7 {[%emt 0:03:48]} 25. Rde1 {[%emt 0:00:40]} Rad8 {[%emt 0:01:42]} 26. Qf4 {[%emt 0:02:30]} Qc8 {[%emt 0:00:38]} 27. Nc5 {[%emt 0:00:30]} Nb6 {[%emt 0:04:29]} 28. Qh4 {[%emt 0:00:30]} Qc7 {[%emt 0:00:30]} 29. a4 {[%emt 0:01:59]} Nc8 {[%emt 0:00:30]} 30. Rd1 {[%emt 0:00:22]} Qe7 {[%emt 0:04:10]} 31. Qxe7 {[%emt 0:17:42]} Rxe7 {[%emt 0:06:00]} 32. Ne4 {[%emt 0:00:52]} Red7 {[%emt 0:01:31]} 33. Red2 {[%emt 0:00:09]} Ne7 {[%emt 0:00:49]} 34. d5 {[%emt 0:02:13]} exd5 {[%emt 0:01:15]} 35. Nf6+ {[%emt 0:00:22]} Bxf6 {[%emt 0:00:59]} 36. Bxf6 {[%emt 0:00:31]} Rc8 {[%emt 0:00:25]} 37. Bxe7 {[%emt 0:00:00]} Rxe7 {[%emt 0:00:30]} 38. cxd5 {[%emt 0:00:00]} cxd5 {[%emt 0:00:00]} 39. Rxd5 {[%emt 0:00:00]} Rc3 {[%emt 0:00:48]} 1/2-1/2

[Event "FIDE CB Open 2022"]
[Site "Ceske Budejovice"]
[Date "2022.07.05"]
[Round "5.44"]
[White "Hladky, Mikulas"]
[Black "Kotleska, Roman"]
[Result "0-1"]
[ECO "B17"]
[WhiteElo "1549"]
[BlackElo "1863"]
[Annotator "NA RC COMBH"]
[PlyCount "120"]
[EventDate "2022.07.01"]
[EventType "swiss"]
[EventCountry "CZE"]
[SourceTitle "playchess.com"]
[Source "ChessBase"]
[SourceQuality "1"]
[TimeControl "40/5400+30:1800+30"]

1. e4 {[%emt 0:00:07]} c6 {[%emt 0:00:26]} 2. Nf3 {[%emt 0:00:31]} d5 {[%emt 0:00:07]} 3. Nc3 {[%emt 0:00:50]} dxe4 {[%emt 0:00:47]} 4. Nxe4 {[%emt 0:00:22]} Nd7 {[%emt 0:00:10]} 5. d4 {[%emt 0:00:20]} Ngf6 {[%emt 0:00:09]} 6. Nxf6+ {[%emt 0:00:35]} Nxf6 {[%emt 0:00:04]} 7. h3 {[%emt 0:00:58]} Bf5 {[%emt 0:02:59]} 8. Bd3 {[%emt 0:02:40]} Bxd3 {[%emt 0:05:19]} 9. Qxd3 {[%emt 0:00:22]} e6 {[%emt 0:00:11]} 10. O-O {[%emt 0:02:58]} Bd6 {[%emt 0:00:11]} 11. Re1 {[%emt 0:02:43]} Qb6 {[%emt 0:03:09]} 12. c4 {[%emt 0:02:25]} Be7 {[%emt 0:03:37]} 13. b3 {[%emt 0:01:36]} O-O {[%emt 0:03:40]} 14. Bb2 {[%emt 0:01:23]} Rad8 {[%emt 0:02:49]} 15. Qc2 {[%emt 0:05:08]} Qc7 {[%emt 0:01:37]} 16. Ng5 {[%emt 0:16:21]} Qf4 {[%emt 0:11:49]} 17. Re5 {[%emt 0:09:56]} Qh4 {[%emt 0:06:21]} 18. g3 {[%emt 0:09:44]} Qh6 {[%emt 0:00:30]} 19. h4 {[%emt 0:07:11]} Nd7 {[%emt 0:06:01]} 20. Ra5 {[%emt 0:06:35]} a6 {[%emt 0:05:20]} 21. Ba3 {[%emt 0:02:54]} Bxa3 {[%emt 0:05:21]} 22. Rxa3 {[%emt 0:00:18]} Nf6 {[%emt 0:02:29]} 23. Rd1 {[%emt 0:05:11]} Rd7 {[%emt 0:01:09]} 24. b4 {[%emt 0:03:24]} Rfd8 {[%emt 0:00:10]} 25. Rad3 {[%emt 0:00:35]} Qg6 {[%emt 0:01:54]} 26. Nf3 {[%emt 0:02:47]} Ng4 {[%emt 0:00:15]} 27. R3d2 {[%emt 0:02:37]} Qxc2 {[%emt 0:06:20]} 28. Rxc2 {[%emt 0:00:04]} e5 {[%emt 0:01:59]} 29. Rcd2 {[%emt 0:00:15]} e4 {[%emt 0:00:44]} 30. Ng5 {[%emt 0:06:10]} e3 {[%emt 0:00:41]} 31. fxe3 {[%emt 0:00:22]} Nxe3 {[%emt 0:00:13]} 32. Re1 {[%emt 0:00:34]} Nxc4 {[%emt 0:03:26]} 33. Rde2 {[%emt 0:00:17]} Nd6 {[%emt 0:03:19]} 34. Ne4 {[%emt 0:04:34]} Nxe4 {[%emt 0:04:28]} 35. Rxe4 {[%emt 0:00:07]} Kf8 {[%emt 0:00:16]} 36. Rd1 {[%emt 0:00:18]} Re7 {[%emt 0:03:09]} 37. Rxe7 {[%emt 0:00:31]} Kxe7 {[%emt 0:00:03]} 38. Kf2 {[%emt 0:00:05]} Kd6 {[%emt 0:00:35]} 39. Ke3 {[%emt 0:00:16]} Kd5 {[%emt 0:00:13]} 40. Kd3 {[%emt 0:00:08]} Re8 {[%emt 0:00:58]} 41. Rc1 {[%emt 0:31:50]} b6 {[%emt 0:30:36]} 42. Rf1 {[%emt 0:00:17]} f6 {[%emt 0:00:41]} 43. Rf5+ {[%emt 0:00:58]} Kd6 {[%emt 0:00:49]} 44. Rf1 {[%emt 0:01:53]} Ra8 {[%emt 0:03:03]} 45. Rb1 {[%emt 0:00:44]} b5 {[%emt 0:01:03]} 46. a4 {[%emt 0:01:25]} a5 {[%emt 0:07:15]} 47. axb5 {[%emt 0:00:22]} cxb5 {[%emt 0:00:14]} 48. bxa5 {[%emt 0:00:36]} Rxa5 {[%emt 0:00:02]} 49. Rb3 {[%emt 0:00:30]} Kd5 {[%emt 0:01:29]} 50. g4 {[%emt 0:00:00]} g6 {[%emt 0:00:52]} 51. Rc3 {[%emt 0:01:43]} b4 {[%emt 0:00:24]} 52. Rc8 {[%emt 0:00:00]} Ra3+ {[%emt 0:00:00]} 53. Kc2 {[%emt 0:00:00]} Kxd4 {[%emt 0:00:00]} 54. Rd8+ {[%emt 0:00:00]} Ke5 {[%emt 0:00:00]} 55. Re8+ {[%emt 0:00:00]} Kf4 {[%emt 0:00:00]} 56. Rb8 {[%emt 0:00:00]} Rc3+ {[%emt 0:00:00]} 57. Kb2 {[%emt 0:00:00]} Rc4 {[%emt 0:00:00]} 58. Kb3 {[%emt 0:00:00]} Re4 {[%emt 0:00:00]} 59. Rf8 {[%emt 0:00:00]} Kxg4 {[%emt 0:00:00]} 60. Rxf6 {[%emt 0:00:00]} Kxh4 {[%emt 0:00:00]} 0-1

[Event "FIDE CB Open 2022"]
[Site "Ceske Budejovice"]
[Date "2022.07.05"]
[Round "5.45"]
[White "Svoboda, Daniel"]
[Black "Hosnedl, Matyas"]
[Result "0-1"]
[ECO "C12"]
[WhiteElo "1679"]
[BlackElo "1967"]
[Annotator "TA"]
[PlyCount "104"]
[EventDate "2022.07.01"]
[EventType "swiss"]
[EventCountry "CZE"]
[SourceTitle "playchess.com"]
[Source "ChessBase"]
[SourceQuality "1"]
[TimeControl "40/5400+30:1800+30"]

{[%evp 25,104,-65,-35,-36,-21,-28,-23,-50,-45,-50,-50,-48,-25,-192,-172,-237,-236,-273,-271,-431,-439,-441,-372,-516,-483,-460,-434,-296,-274,-266,-41,-93,0,0,0,0,0,0,0,-8,0,-103,-110,-108,-34,-67,0,0,0,0,0,0,0,0,0,0,0,0,45,55,245,220,374,278,314,281,441,0,0,0,447,131,153,0,0,0,0,-445,-412,-409,-332]} 1. e4 {[%emt 0:00:06][%cal Be2e4,Be4e5][%mdl 32]} e6 {[%emt 0:00:06]} 2. d4 {[%emt 0:00:11]} d5 {[%emt 0:00:08]} 3. Nc3 {[%emt 0:00:19]} Nf6 {[%emt 0:00:08]} 4. Bg5 {[%emt 0:00:29]} Bb4 {[%emt 0:00:39]} 5. e5 {[%emt 0:00:53]} h6 {[%emt 0:00:09]} 6. Bd2 {[%emt 0:00:39]} Bxc3 {[%emt 0:00:08]} 7. bxc3 {[%emt 0:00:17]} Ne4 {[%emt 0:00:06]} 8. Qg4 {[%emt 0:00:43]} Kf8 {[%emt 0:06:44]} 9. Bd3 {[%emt 0:01:22]} Nxd2 {[%emt 0:00:20]} 10. Kxd2 {[%emt 0:00:06]} c5 {[%emt 0:00:10]} 11. h4 {[%emt 0:03:44]} c4 {[%emt 0:03:58]} 12. Be2 {[%emt 0:01:20]} Nc6 {[%emt 0:00:06]} 13. Rh3 {[%emt 0:03:26]} b5 {[%emt 0:07:35]} 14. Rg3 {[%emt 0:10:57] C12: French: Classical System: McCutcheon Variation.} Rg8 {[%emt 0:00:56]} 15. Qf4 {[%emt 0:09:04]} Qe7 {[%emt 0:06:04] [#]} 16. Rb1 $146 {[%emt 0:08:49] Black has an edge.} ({Predecessor:} 16. Bh5 Ke8 17. Ne2 a5 18. Ke1 b4 19. Kf1 Rb8 20. Kg1 Ba6 21. Rb1 Bb5 22. cxb4 {½-½ (63) Miettinen,K (2297)-Refalo,J (2332) ICCF email 2008}) 16... Rb8 {[%emt 0:00:45]} 17. Bh5 {[%emt 0:06:36]} Bd7 {[%emt 0:08:11]} 18. Rf3 {[%emt 0:16:23]} Be8 {[%emt 0:01:05]} 19. g4 $2 {[%emt 0:01:45]} (19. Ke1 $11 {and White has nothing to worry.}) 19... b4 $19 {[%emt 0:03:12]} 20. cxb4 {[%emt 0:02:15]} (20. Ke1 $142) 20... Rxb4 {[%emt 0:00:19]} 21. Rxb4 {[%emt 0:01:44]} Qxb4+ {[%emt 0:00:32]} 22. Ke2 {[%emt 0:01:35]} (22. Rc3 $142) 22... g6 {[%emt 0:16:45]} 23. Qxh6+ {[%emt 0:01:40]} Ke7 {[%emt 0:00:48]} 24. Qh7 {[%emt 0:00:21]} Nxd4+ {[%emt 0:00:10]} (24... gxh5 25. Qxg8 Qb1 26. Qg5+ Kd7 27. c3 (27. gxh5 $2 Nxd4+ 28. Ke3 Nxc2+ 29. Kf4 Qc1+ 30. Re3 Nxe3 $19) 27... Qxg1 28. gxh5 $11) 25. Kf1 {[%emt 0:02:18]} Nxf3 {[%emt 0:03:28]} (25... gxh5 26. Qxg8 Qb1+ 27. Kg2 Nxf3 28. Nxf3 hxg4 29. Qg5+ Kf8 30. Qh6+ Kg8 31. Qg5+ Kf8 32. Qh6+ Kg8 33. Qg5+ Kf8 $11) 26. Nxf3 {[%emt 0:00:41]} Rf8 {[%emt 0:00:27]} (26... gxh5 27. Qxg8 hxg4 28. Qg5+ Kf8 29. Qh6+ Kg8 30. Qg5+ Kf8 31. Qh6+ Kg8 32. Qg5+ Kf8 $11) 27. Bxg6 {[%emt 0:00:28]} Kd8 $2 {[%emt 0:00:32]} (27... c3 $1 $19 28. Bd3 Qxg4) 28. Bh5 $15 {[%emt 0:05:06]} Qe7 {[%emt 0:06:23]} ({Black should try} 28... c3 $1 $17) 29. c3 $11 {[%emt 0:04:50]} f5 {[%emt 0:03:47]} 30. Qh6 {[%emt 0:01:52] aiming for Nd4.} Bxh5 {[%emt 0:00:52]} 31. gxh5 {[%emt 0:01:24][%mdl 4096] Endgame KQR-KQN} Kd7 {[%emt 0:04:56]} 32. Qe3 {[%emt 0:02:17]} Ke8 {[%emt 0:06:39]} 33. Ng5 {[%emt 0:04:12]} (33. Qh6 $11 {keeps the balance.}) 33... Rh8 $17 {[%emt 0:05:12]} 34. Qe2 {[%emt 0:03:16]} Qb7 {[%emt 0:08:36]} (34... Kf8 $17 35. Qd1 Qe8) 35. Qd1 {[%emt 0:01:36]} Ke7 {[%emt 0:01:59]} (35... Qa6 $15 36. Qb1 Kd7) 36. Qa4 $11 {[%emt 0:03:38]} Qb6 {[%emt 0:03:36]} 37. Qa3+ {[%emt 0:00:48]} Ke8 {[%emt 0:00:05]} 38. Qa4+ {[%emt 0:00:26]} Ke7 {[%emt 0:01:32]} 39. Qa3+ {[%emt 0:00:16]} Kd7 {[%emt 0:00:04]} 40. Qa4+ {[%emt 0:00:56]} Kc7 {[%emt 0:00:45]} 41. Qa3 {[%emt 0:31:36]} Re8 {[%emt 0:03:34]} 42. h6 {[%emt 0:00:00][%cal Bh5h6,Bh6h7][%mdl 32]} a5 $2 {[%emt 0:07:27]} ({Better is} 42... d4 $14) 43. h7 $18 {[%emt 0:00:00][%cal Oa3d6] Hoping for Qd6+!} d4 $2 {[%emt 0:00:15]} (43... Kb7 44. Qd6 Rh8) 44. cxd4 {[%emt 0:00:00][%cal Oa3d6] Qd6+! is the strong threat.} Qb4 {[%emt 0:00:13] Prevents Qd6+.} 45. Nxe6+ $1 {[%emt 0:00:00]} Kb8 {[%emt 0:00:04] [#]} (45... Kb6 {was called for.} 46. Qxb4+ axb4) 46. Qg3 $2 {[%emt 0:00:00]} Qb1+ $11 {[%emt 0:02:00]} 47. Kg2 {[%emt 0:00:00]} Qe4+ $2 {[%emt 0:00:09][%mdl 8192]} (47... Qb7+ $11 48. Kf1 Qb1+ 49. Ke2 Qc2+ 50. Kf1 Qb1+) 48. Kh2 $2 {[%emt 0:00:00]} (48. f3 $18 {has better winning chances.} f4 49. fxe4 fxg3 50. d5) 48... Qg4 {[%emt 0:00:44]} 49. Qa3 {[%emt 0:00:15]} Qxh4+ {[%emt 0:00:31]} 50. Kg1 {[%emt 0:01:57]} Qg4+ {[%emt 0:02:54]} (50... Qxh7 $2 51. Qd6+ Ka7 52. Qc5+ Ka8 53. Qc6+ Ka7 54. Qc5+ Ka8 55. Qc6+ Ka7 56. Qxe8 $18) 51. Kh2 $2 {[%emt 0:01:19][%mdl 8192] [#]} (51. Kf1 $1 $11 Qd1+ 52. Kg2 Qg4+ 53. Kf1 Qd1+ 54. Kg2 Qg4+ 55. Kf1) 51... Qh5+ $1 $19 {[%emt 0:00:44]} ({Worse is} 51... Qh4+ 52. Kg2 Qg4+ 53. Kf1 Qd1+ 54. Kg2 Qg4+ 55. Kf1 Qd1+ 56. Kg2 Qg4+ $11) 52. Kg2 {[%emt 0:00:40] [#] Threatening mate with Qd6+.} ({Reject} 52. Qh3 Qxh3+ 53. Kxh3 c3 $19) 52... Qg6+ $1 {[%emt 0:00:11] Black used his chance.  Weighted Error Value: White=0.68/Black=0.50} ({Weaker is} 52... Rxe6 53. Qf8+ Re8 54. Qd6+ Kc8 55. Qc6+ Kb8 56. Qd6+ Kc8 57. Qc6+ Kd8 58. Qd6+ Kc8 $11) 0-1

[Event "FIDE CB Open 2022"]
[Site "Ceske Budejovice"]
[Date "2022.07.05"]
[Round "5.47"]
[White "Zednicek, Filip"]
[Black "Pavlicek, Petr"]
[Result "1-0"]
[ECO "B22"]
[WhiteElo "1688"]
[BlackElo "1806"]
[Annotator "NA RC COMBH"]
[PlyCount "61"]
[EventDate "2022.07.01"]
[EventType "swiss"]
[EventCountry "CZE"]
[SourceTitle "playchess.com"]
[Source "ChessBase"]
[SourceQuality "1"]
[TimeControl "40/5400+30:1800+30"]

1. e4 {[%emt 0:00:20]} c5 {[%emt 0:00:09]} 2. c3 {[%emt 0:00:23]} d6 {[%emt 0:00:12]} 3. d4 {[%emt 0:00:10]} Nf6 {[%emt 0:00:20]} 4. d5 {[%emt 0:03:32]} Nbd7 {[%emt 0:02:34]} 5. Nd2 {[%emt 0:01:12]} g6 {[%emt 0:00:29]} 6. f4 {[%emt 0:01:09]} Bg7 {[%emt 0:01:38]} 7. Ngf3 {[%emt 0:00:41]} a6 {[%emt 0:02:41]} 8. Bd3 {[%emt 0:03:46]} b5 {[%emt 0:00:45]} 9. O-O {[%emt 0:04:25]} O-O {[%emt 0:01:29]} 10. Re1 {[%emt 0:02:57]} c4 {[%emt 0:06:41]} 11. Bc2 {[%emt 0:00:44]} Bb7 {[%emt 0:08:51]} 12. Nf1 {[%emt 0:01:03]} Qc7 {[%emt 0:01:17]} 13. h3 {[%emt 0:10:18]} Rad8 {[%emt 0:05:01]} 14. Ng3 {[%emt 0:03:36]} Nb6 {[%emt 0:05:23]} 15. Nd4 {[%emt 0:03:15]} Nfd7 {[%emt 0:02:17]} 16. f5 {[%emt 0:01:58]} Ne5 {[%emt 0:01:45]} 17. h4 {[%emt 0:06:20]} Nbd7 {[%emt 0:03:35]} 18. fxg6 {[%emt 0:11:56]} hxg6 {[%emt 0:01:11]} 19. h5 {[%emt 0:06:11]} Bc8 {[%emt 0:13:19]} 20. hxg6 {[%emt 0:04:14]} Nxg6 {[%emt 0:00:22]} 21. Ndf5 {[%emt 0:03:43]} Nf6 {[%emt 0:10:53]} 22. Nxg7 {[%emt 0:01:33]} Kxg7 {[%emt 0:00:09]} 23. Bg5 {[%emt 0:01:13]} Ng4 {[%emt 0:02:01]} 24. Nf5+ {[%emt 0:04:15]} Bxf5 {[%emt 0:01:18]} 25. exf5 {[%emt 0:01:47]} N6e5 {[%emt 0:02:32]} 26. Bxe7 {[%emt 0:08:04]} Rh8 {[%emt 0:04:48]} 27. f6+ {[%emt 0:01:21]} Kg8 {[%emt 0:00:14]} 28. Qd4 {[%emt 0:05:15]} Re8 {[%emt 0:05:29]} 29. Re4 {[%emt 0:01:19]} Nh2 {[%emt 0:05:41]} 30. Qe3 {[%emt 0:01:32]} Rxe7 {[%emt 0:01:12]} 31. Qg5+ {[%emt 0:00:46]} 1-0

[Event "FIDE CB Open 2022"]
[Site "Ceske Budejovice"]
[Date "2022.07.05"]
[Round "5.48"]
[White "Rosol, Philip"]
[Black "Svejda, Karel"]
[Result "1-0"]
[ECO "E73"]
[WhiteElo "1741"]
[BlackElo "1619"]
[Annotator "NA RC COMBH"]
[PlyCount "125"]
[EventDate "2022.07.01"]
[EventType "swiss"]
[EventCountry "CZE"]
[SourceTitle "playchess.com"]
[Source "ChessBase"]
[SourceQuality "1"]
[TimeControl "40/5400+30:1800+30"]

1. d4 {[%emt 0:00:09]} Nf6 {[%emt 0:00:04]} 2. c4 {[%emt 0:00:03]} g6 {[%emt 0:00:02]} 3. Nc3 {[%emt 0:00:04]} Bg7 {[%emt 0:00:04]} 4. e4 {[%emt 0:00:04]} d6 {[%emt 0:00:07]} 5. Be2 {[%emt 0:00:04]} O-O {[%emt 0:00:07]} 6. Bg5 {[%emt 0:00:04]} Na6 {[%emt 0:00:57]} 7. h4 {[%emt 0:04:17]} e5 {[%emt 0:05:30]} 8. d5 {[%emt 0:03:08]} h6 {[%emt 0:04:14]} 9. Be3 {[%emt 0:01:37]} Nc5 {[%emt 0:09:04]} 10. f3 {[%emt 0:01:03]} a5 {[%emt 0:04:00]} 11. g4 {[%emt 0:19:50]} Ne8 {[%emt 0:12:59]} 12. h5 {[%emt 0:04:48]} g5 {[%emt 0:00:34]} 13. Nh3 {[%emt 0:02:10]} Bd7 {[%emt 0:03:41]} 14. Qd2 {[%emt 0:04:05]} Bf6 {[%emt 0:02:06]} 15. O-O {[%emt 0:17:23]} b6 {[%emt 0:03:58]} 16. Nf2 {[%emt 0:04:20]} Qe7 {[%emt 0:04:13]} 17. Bd1 {[%emt 0:03:14]} Ng7 {[%emt 0:01:54]} 18. Bc2 {[%emt 0:03:58]} Rfb8 {[%emt 0:00:47]} 19. b3 {[%emt 0:02:26]} Ra7 {[%emt 0:05:01]} 20. a3 {[%emt 0:02:52]} Rba8 {[%emt 0:03:08]} 21. Rab1 {[%emt 0:03:54]} Qe8 {[%emt 0:05:42]} 22. b4 {[%emt 0:02:17]} axb4 {[%emt 0:02:51]} 23. axb4 {[%emt 0:00:07]} Nb7 {[%emt 0:01:22]} 24. Nd3 {[%emt 0:01:04]} Qf8 {[%emt 0:04:57]} 25. Rfc1 {[%emt 0:01:21]} Ra3 {[%emt 0:03:56]} 26. Bd1 {[%emt 0:02:38]} Be7 {[%emt 0:02:38]} 27. Rb2 {[%emt 0:05:01]} f6 {[%emt 0:00:45]} 28. Rcc2 {[%emt 0:02:32]} Kf7 {[%emt 0:06:18]} 29. Ra2 {[%emt 0:03:00]} Qb8 {[%emt 0:03:14]} 30. Rxa3 {[%emt 0:02:25]} Rxa3 {[%emt 0:00:01]} 31. Ra2 {[%emt 0:01:03]} Qa8 {[%emt 0:00:34]} 32. Qb2 {[%emt 0:01:27]} Rxa2 {[%emt 0:02:03]} 33. Qxa2 {[%emt 0:00:22]} Qxa2 {[%emt 0:00:01]} 34. Nxa2 {[%emt 0:00:01]} b5 {[%emt 0:01:46]} 35. c5 {[%emt 0:01:31]} c6 {[%emt 0:01:44]} 36. Bb3 {[%emt 0:00:42]} Kf8 {[%emt 0:00:17]} 37. Nc3 {[%emt 0:00:54]} Ne8 {[%emt 0:01:13]} 38. dxc6 {[%emt 0:02:13]} Bxc6 {[%emt 0:00:08]} 39. Bd5 {[%emt 0:00:36]} Bxd5 {[%emt 0:00:34]} 40. exd5 {[%emt 0:00:22]} dxc5 {[%emt 0:01:16]} 41. bxc5 {[%emt 0:03:32]} b4 {[%emt 0:00:53]} 42. c6 {[%emt 0:07:22]} Na5 {[%emt 0:04:31]} 43. Nb5 {[%emt 0:03:46]} Nc4 {[%emt 0:04:04]} 44. Bc5 {[%emt 0:11:35]} b3 {[%emt 0:08:34]} 45. Bxe7+ {[%emt 0:04:42]} Kxe7 {[%emt 0:00:09]} 46. c7 {[%emt 0:01:06]} Nxc7 {[%emt 0:02:56]} 47. d6+ {[%emt 0:01:52]} Kd7 {[%emt 0:09:13]} 48. dxc7 {[%emt 0:00:08]} b2 {[%emt 0:00:52]} 49. Nc3 {[%emt 0:00:54]} Kxc7 {[%emt 0:00:32]} 50. Kf2 {[%emt 0:00:12]} Kd6 {[%emt 0:01:26]} 51. Ke2 {[%emt 0:00:37]} Ke6 {[%emt 0:01:58]} 52. Nc5+ {[%emt 0:01:18]} Kd6 {[%emt 0:01:53]} 53. N5e4+ {[%emt 0:00:00]} Ke6 {[%emt 0:00:07]} 54. Kd3 {[%emt 0:00:38]} Na3 {[%emt 0:01:46]} 55. Nd2 {[%emt 0:00:11]} f5 {[%emt 0:00:58]} 56. Ndb1 {[%emt 0:00:32]} Nxb1 {[%emt 0:00:39]} 57. Nxb1 {[%emt 0:00:12]} fxg4 {[%emt 0:00:47]} 58. fxg4 {[%emt 0:00:06]} Kd5 {[%emt 0:02:14]} 59. Nc3+ {[%emt 0:00:30]} Kc5 {[%emt 0:00:32]} 60. Na4+ {[%emt 0:00:09]} Kd5 {[%emt 0:00:32]} 61. Nxb2 {[%emt 0:00:05]} e4+ {[%emt 0:00:10]} 62. Ke3 {[%emt 0:00:06]} Ke5 {[%emt 0:00:14]} 63. Nc4+ {[%emt 0:00:21]} 1-0

[Event "FIDE CB Open 2022"]
[Site "Ceske Budejovice"]
[Date "2022.07.05"]
[Round "5.49"]
[White "Hammel, Juergen"]
[Black "Travnicek, Jaroslav"]
[Result "1/2-1/2"]
[ECO "C47"]
[WhiteElo "1650"]
[BlackElo "1730"]
[Annotator "NA COMBH"]
[PlyCount "98"]
[EventDate "2022.07.01"]
[EventType "swiss"]
[EventCountry "CZE"]
[SourceTitle "playchess.com"]
[Source "ChessBase"]
[SourceQuality "1"]
[TimeControl "40/5400+30:1800+30"]

1. e4 {[%emt 0:00:09]} e5 {[%emt 0:00:14]} 2. Nf3 {[%emt 0:00:08]} Nf6 {[%emt 0:00:08]} 3. Nc3 {[%emt 0:00:18]} Nc6 {[%emt 0:00:07]} 4. d4 {[%emt 0:00:31]} exd4 {[%emt 0:00:42]} 5. Nxd4 {[%emt 0:00:12]} Bb4 {[%emt 0:00:31]} 6. a3 {[%emt 0:02:24]} Bxc3+ {[%emt 0:02:07]} 7. bxc3 {[%emt 0:01:16]} Nxe4 {[%emt 0:09:53]} 8. Qf3 {[%emt 0:03:04]} d5 {[%emt 0:05:45]} 9. Bb5 {[%emt 0:01:45]} Bd7 {[%emt 0:01:43]} 10. O-O {[%emt 0:02:23]} O-O {[%emt 0:00:59]} 11. Nxc6 {[%emt 0:03:26]} Bxc6 {[%emt 0:01:54]} 12. Bd3 {[%emt 0:03:36]} Re8 {[%emt 0:04:42]} 13. Qh5 {[%emt 0:07:27]} g6 {[%emt 0:11:37]} 14. Qh6 {[%emt 0:00:56]} Qf6 {[%emt 0:01:50]} 15. f3 {[%emt 0:09:46]} Nxc3 {[%emt 0:08:10]} 16. Bg5 {[%emt 0:01:39]} Qg7 {[%emt 0:00:38]} 17. Qh4 {[%emt 0:00:17]} Re6 {[%emt 0:01:15]} 18. Rfe1 {[%emt 0:03:04]} Rae8 {[%emt 0:01:58]} 19. Rxe6 {[%emt 0:00:17]} Rxe6 {[%emt 0:00:11]} 20. Bh6 {[%emt 0:02:03]} Ne2+ {[%emt 0:03:13]} 21. Kf2 {[%emt 0:03:42]} Qd4+ {[%emt 0:04:49]} 22. Qxd4 {[%emt 0:00:59]} Nxd4 {[%emt 0:00:03]} 23. c4 {[%emt 0:02:24]} Nb3 {[%emt 0:05:01]} 24. Rd1 {[%emt 0:08:44]} f5 {[%emt 0:13:59]} 25. cxd5 {[%emt 0:04:12]} Bxd5 {[%emt 0:00:30]} 26. Bc2 {[%emt 0:00:52]} Bc4 {[%emt 0:03:56]} 27. Rd8+ {[%emt 0:01:08]} Kf7 {[%emt 0:00:00]} 28. Bxb3 {[%emt 0:00:30]} Bxb3 {[%emt 0:00:04]} 29. Bg5 {[%emt 0:00:30]} Rd6 {[%emt 0:01:20]} 30. Rh8 {[%emt 0:00:50]} Kg7 {[%emt 0:02:30]} 31. Rc8 {[%emt 0:04:24]} Rd7 {[%emt 0:00:15]} 32. Bf4 {[%emt 0:00:38]} c6 {[%emt 0:00:42]} 33. g4 {[%emt 0:05:40]} fxg4 {[%emt 0:00:34]} 34. fxg4 {[%emt 0:00:12]} Bd5 {[%emt 0:00:56]} 35. Kg3 {[%emt 0:04:31]} b5 {[%emt 0:01:25]} 36. Be5+ {[%emt 0:04:53]} Kf7 {[%emt 0:01:43]} 37. Rh8 {[%emt 0:00:09]} Ke6 {[%emt 0:00:35]} 38. Re8+ {[%emt 0:00:23]} Re7 {[%emt 0:00:13]} 39. Rxe7+ {[%emt 0:00:12]} Kxe7 {[%emt 0:00:02]} 40. Bd4 {[%emt 0:00:15]} a6 {[%emt 0:00:09]} 41. Bc5+ {[%emt 0:30:19]} Ke6 {[%emt 0:30:21]} 42. Kf4 {[%emt 0:00:24]} h5 {[%emt 0:01:49]} 43. gxh5 {[%emt 0:03:47]} gxh5 {[%emt 0:00:03]} 44. Ke3 {[%emt 0:01:05]} Ke5 {[%emt 0:01:52]} 45. Kd3 {[%emt 0:03:37]} Be6 {[%emt 0:01:13]} 46. Kc3 {[%emt 0:00:36]} Kd5 {[%emt 0:00:20]} 47. Bb6 {[%emt 0:00:54]} c5 {[%emt 0:01:45]} 48. Bd8 {[%emt 0:01:07]} Ke4 {[%emt 0:02:05]} 49. Bb6 {[%emt 0:00:46]} Kd5 {[%emt 0:03:36]} 1/2-1/2

[Event "FIDE CB Open 2022"]
[Site "Ceske Budejovice"]
[Date "2022.07.05"]
[Round "5.50"]
[White "Schmied, Eva-Maria"]
[Black "Simajchl, Adam"]
[Result "1-0"]
[ECO "B35"]
[WhiteElo "1718"]
[BlackElo "1610"]
[Annotator "NA RC COMBH"]
[PlyCount "43"]
[EventDate "2022.07.01"]
[EventType "swiss"]
[EventCountry "CZE"]
[SourceTitle "playchess.com"]
[Source "ChessBase"]
[SourceQuality "1"]
[TimeControl "40/5400+30:1800+30"]

1. e4 {[%emt 0:00:39]} c5 {[%emt 0:00:10]} 2. Nf3 {[%emt 0:00:30]} g6 {[%emt 0:00:16]} 3. d4 {[%emt 0:00:05]} cxd4 {[%emt 0:00:01]} 4. Nxd4 {[%emt 0:00:05]} Nc6 {[%emt 0:00:22]} 5. Be3 {[%emt 0:00:32]} Bg7 {[%emt 0:00:08]} 6. Nc3 {[%emt 0:00:16]} Nf6 {[%emt 0:00:12]} 7. Bc4 {[%emt 0:00:10]} Qa5 {[%emt 0:00:25]} 8. O-O {[%emt 0:00:58]} O-O {[%emt 0:00:59]} 9. h3 {[%emt 0:02:00]} Rd8 {[%emt 0:09:19]} 10. Bb3 {[%emt 0:27:25]} d5 {[%emt 0:16:36]} 11. exd5 {[%emt 0:13:19]} Nb4 {[%emt 0:00:29]} 12. Qf3 {[%emt 0:08:45]} Nbxd5 {[%emt 0:03:50]} 13. Nxd5 {[%emt 0:00:25]} Nxd5 {[%emt 0:00:11]} 14. c3 {[%emt 0:00:55]} e5 {[%emt 0:20:19]} 15. Nc2 {[%emt 0:04:45]} b6 {[%emt 0:07:19]} 16. Bg5 {[%emt 0:06:41]} f6 {[%emt 0:03:00]} 17. Bxf6 {[%emt 0:01:08]} e4 {[%emt 0:04:42]} 18. Qf4 {[%emt 0:01:55]} Rf8 {[%emt 0:00:58]} 19. Qe5 {[%emt 0:00:36]} Bb7 {[%emt 0:05:11]} 20. Bxg7 {[%emt 0:00:22]} Rae8 {[%emt 0:00:46]} 21. Qd4 {[%emt 0:00:38]} Rf7 {[%emt 0:00:34]} 22. Bh6 {[%emt 0:00:37]} 1-0